[Event "93rd FRA-ch 2018"]
[Site "Nimes"]
[Date "2018.08.19"]
[Round "2"]
[White "Gharamian, Tigran"]
[Black "Edouard, Romain"]
[Result "1-0"]
[ECO "B63"]
[WhiteElo "2614"]
[BlackElo "2638"]
[Annotator "ChessBase"]
[PlyCount "81"]
[EventDate "2018.08.18"]
[EventType "tourn"]
[EventCountry "FRA"]
[SourceTitle "playchess.com"]
[Source "ChessBase"]
[SourceQuality "1"]
[TimeControl "40/5400+30:1800+30"]

1. e4 {[%emt 0:00:00]} c5 {[%emt 0:01:26]} 2. Nf3 {[%emt 0:00:00]} d6 {[%emt 0:00:04]} 3. d4 {[%emt 0:00:05]} cxd4 {[%emt 0:00:07]} 4. Nxd4 {[%emt 0:00:06]} Nf6 {[%emt 0:00:03]} 5. Nc3 {[%emt 0:00:10]} Nc6 {[%emt 0:00:04]} 6. Bg5 {[%emt 0:00:55]} e6 {[%emt 0:02:21]} 7. Qd2 {[%emt 0:00:19]} Qb6 {[%emt 0:00:04]} 8. Nb3 {[%emt 0:06:56]} Be7 {[%emt 0:00:22]} 9. Bxf6 {[%emt 0:00:06]} Bxf6 {[%emt 0:00:38]} 10. Qxd6 {[%emt 0:00:06]} Be5 {[%emt 0:01:06]} 11. Qa3 {[%emt 0:01:23]} Qb4 {[%emt 0:12:32]} 12. Qxb4 {[%emt 0:01:49]} Nxb4 {[%emt 0:00:02]} 13. O-O-O {[%emt 0:04:13]} Ke7 {[%emt 0:01:26]} 14. a3 {[%emt 0:18:55]} Nc6 {[%emt 0:00:34]} 15. Bb5 {[%emt 0:06:38]} Nb8 {[%emt 0:02:57]} 16. Ne2 {[%emt 0:01:07]} g5 {[%emt 0:06:12]} 17. g3 {[%emt 0:08:31]} b6 {[%emt 0:07:28]} 18. f4 {[%emt 0:01:42]} gxf4 {[%emt 0:06:10]} 19. gxf4 {[%emt 0:00:05]} Bc7 {[%emt 0:00:17]} 20. Rhg1 {[%emt 0:04:16]} Bb7 {[%emt 0:00:38]} 21. e5 {[%emt 0:00:33]} a6 {[%emt 0:03:12]} 22. Bd3 {[%emt 0:00:58]} Nd7 {[%emt 0:00:19]} 23. Nc3 {[%emt 0:07:32]} Rag8 {[%emt 0:09:57]} 24. Be4 {[%emt 0:02:24]} Bc8 {[%emt 0:09:34]} 25. Nd4 {[%emt 0:02:23]} Nb8 {[%emt 0:00:24]} 26. Rg3 {[%emt 0:09:42]} b5 {[%emt 0:02:21]} 27. Nf5+ {[%emt 0:06:49]} exf5 {[%emt 0:05:19]} 28. Nd5+ {[%emt 0:00:04]} Kf8 {[%emt 0:03:04]} 29. Nxc7 {[%emt 0:00:06]} Rxg3 {[%emt 0:05:20]} 30. hxg3 {[%emt 0:00:05]} Kg7 {[%emt 0:01:30]} 31. Bf3 {[%emt 0:01:58]} Nd7 {[%emt 0:00:23]} 32. Nxa6 {[%emt 0:06:52]} Nxe5 {[%emt 0:00:37]} 33. fxe5 {[%emt 0:00:04]} Bxa6 {[%emt 0:00:02]} 34. Rd6 {[%emt 0:00:36]} Bc8 {[%emt 0:00:01]} 35. Bc6 {[%emt 0:00:05]} h5 {[%emt 0:01:01]} 36. Rd4 {[%emt 0:02:04]} Rh6 {[%emt 0:07:33]} 37. Bxb5 {[%emt 0:00:58]} Rg6 {[%emt 0:00:02]} 38. Be2 {[%emt 0:00:45]} Rxg3 {[%emt 0:00:00]} 39. Bxh5 {[%emt 0:00:08]} Re3 {[%emt 0:00:00]} 40. Kd2 {[%emt 0:00:44]} Rxe5 {[%emt 0:00:00]} 41. Bf3 {[%emt 0:30:06]} 1-0

[Event "93rd FRA-ch 2018"]
[Site "Nimes"]
[Date "2018.08.19"]
[Round "2"]
[White "Le Roux, Jean-Pierre"]
[Black "Loiseau, Quentin"]
[Result "1/2-1/2"]
[ECO "B23"]
[WhiteElo "2539"]
[BlackElo "2417"]
[Annotator "RC"]
[PlyCount "84"]
[EventDate "2018.08.18"]
[EventType "tourn"]
[EventCountry "FRA"]
[SourceTitle "playchess.com"]
[Source "ChessBase"]
[SourceQuality "1"]
[TimeControl "40/5400+30:1800+30"]

1. e4 {[%emt 0:00:00]} c5 {[%emt 0:00:00]} 2. Nc3 {[%emt 0:00:12]} Nc6 {[%emt 0:00:11]} 3. Nge2 {[%emt 0:00:25]} Nf6 {[%emt 0:00:28]} 4. g3 {[%emt 0:00:14]} g6 {[%emt 0:11:52]} 5. Bg2 {[%emt 0:00:29]} Bg7 {[%emt 0:00:18]} 6. d3 {[%emt 0:00:12]} d6 {[%emt 0:02:20]} 7. h3 {[%emt 0:00:10]} O-O {[%emt 0:08:03]} 8. O-O {[%emt 0:00:22]} Rb8 {[%emt 0:03:10]} 9. a4 {[%emt 0:00:17]} a6 {[%emt 0:01:09]} 10. f4 {[%emt 0:03:15]} Nd7 {[%emt 0:03:04]} 11. f5 {[%emt 0:00:23]} e6 {[%emt 0:10:06]} 12. g4 {[%emt 0:07:24]} b5 {[%emt 0:02:15]} 13. axb5 {[%emt 0:00:05]} axb5 {[%emt 0:00:06]} 14. g5 {[%emt 0:06:38]} Be5 {[%emt 0:05:34]} 15. Nf4 {[%emt 0:07:04]} Nd4 {[%emt 0:07:54]} 16. f6 {[%emt 0:18:42]} Bb7 {[%emt 0:03:09]} 17. Nce2 {[%emt 0:01:12]} Ra8 {[%emt 0:01:58]} 18. Rxa8 {[%emt 0:10:08]} Qxa8 {[%emt 0:00:19]} 19. c3 {[%emt 0:00:43]} Nxe2+ {[%emt 0:04:37]} 20. Nxe2 d5 21. d4 {[%emt 0:04:38]} Bc7 {[%emt 0:04:04]} 22. e5 {[%emt 0:02:10]} b4 {[%emt 0:03:34]} 23. Nf4 {[%emt 0:14:04]} bxc3 {[%emt 0:01:54]} 24. bxc3 cxd4 25. cxd4 {[%emt 0:00:08]} Qa7 {[%emt 0:02:06]} 26. Kh1 {[%emt 0:02:06]} Bb6 {[%emt 0:01:19]} 27. Qg4 {[%emt 0:05:34]} Re8 {[%emt 0:20:28]} 28. Qh4 {[%emt 0:02:41]} Kh8 {[%emt 0:00:19]} 29. Be3 {[%emt 0:07:40]} Rg8 {[%emt 0:02:31]} 30. Bg1 {[%emt 0:00:47]} Qa3 {[%emt 0:00:56]} 31. Qg4 {[%emt 0:00:53]} Ba6 {[%emt 0:01:01]} 32. Rd1 {[%emt 0:02:07]} Qb3 {[%emt 0:00:41]} 33. h4 {[%emt 0:00:54]} Nf8 {[%emt 0:00:29]} 34. Ra1 {[%emt 0:02:01]} Bc4 {[%emt 0:00:32]} 35. h5 {[%emt 0:02:39]} Qb2 {[%emt 0:00:30]} 36. Rd1 {[%emt 0:00:49]} gxh5 {[%emt 0:00:21]} 37. Qxh5 {[%emt 0:00:28]} Ng6 {[%emt 0:00:07]} 38. Nxg6+ {[%emt 0:00:48]} Rxg6 {[%emt 0:00:59]} 39. Qh4 {[%emt 0:00:27]} Ba5 {[%emt 0:00:30]} 40. Bf3 {[%emt 0:00:35]} Be2 {[%emt 0:00:34]} 41. Qf2 {[%emt 0:07:15]} Bxf3+ {[%emt 0:05:46]} 42. Qxf3 {[%emt 0:00:06]} Rxg5 {[%emt 0:08:03]} 1/2-1/2

[Event "93rd FRA-ch 2018"]
[Site "Nimes"]
[Date "2018.08.26"]
[Round "18"]
[White "Gharamian, Tigran"]
[Black "Edouard, Romain"]
[Result "1-0"]
[ECO "B30"]
[WhiteElo "2614"]
[BlackElo "2638"]
[Annotator "RC"]
[PlyCount "127"]
[EventDate "2018.08.18"]
[EventType "tourn"]
[EventCountry "FRA"]
[SourceTitle "playchess.com"]
[Source "ChessBase"]
[SourceQuality "1"]
[TimeControl "300+3"]

1. e4 c5 2. Nf3 {[%emt 0:00:00]} Nc6 {[%emt 0:00:07]} 3. Bb5 e6 4. O-O {[%emt 0:00:00]} Nge7 {[%emt 0:00:07]} 5. d4 {[%emt 0:00:00]} cxd4 {[%emt 0:00:04]} 6. Nxd4 {[%emt 0:00:00]} Qc7 {[%emt 0:00:04]} 7. Be2 {[%emt 0:00:00]} d5 {[%emt 0:00:23]} 8. exd5 {[%emt 0:00:05]} Nxd5 {[%emt 0:00:05]} 9. Nxc6 {[%emt 0:00:06]} bxc6 {[%emt 0:00:05]} 10. c4 {[%emt 0:00:09]} Nf6 {[%emt 0:00:04]} 11. Nc3 {[%emt 0:00:16]} Bd6 {[%emt 0:00:05]} 12. h3 {[%emt 0:00:06]} O-O {[%emt 0:00:06]} 13. Bf3 {[%emt 0:00:06]} Rb8 {[%emt 0:00:12]} 14. Qc2 {[%emt 0:00:05]} a6 {[%emt 0:00:25]} 15. b3 {[%emt 0:00:24]} c5 {[%emt 0:00:04]} 16. Be3 {[%emt 0:00:04]} Bd7 {[%emt 0:00:30]} 17. Rad1 {[%emt 0:00:04]} Bf4 {[%emt 0:00:11]} 18. Bxf4 {[%emt 0:00:12]} Qxf4 {[%emt 0:00:04]} 19. Ne4 {[%emt 0:00:04]} Qc7 {[%emt 0:00:22]} 20. Nxf6+ {[%emt 0:00:09]} gxf6 {[%emt 0:00:04]} 21. Qd2 {[%emt 0:00:07]} Rfd8 {[%emt 0:00:12]} 22. Qh6 {[%emt 0:00:05]} Qe5 {[%emt 0:00:08]} 23. Rfe1 {[%emt 0:00:06]} Qg5 {[%emt 0:00:19]} 24. Qxg5+ {[%emt 0:00:04]} fxg5 {[%emt 0:00:04]} 25. Re5 {[%emt 0:00:04]} Rbc8 {[%emt 0:00:03]} 26. Rxg5+ {[%emt 0:00:04]} Kf8 {[%emt 0:00:04]} 27. Re5 {[%emt 0:00:07]} Ke7 {[%emt 0:00:08]} 28. Re2 {[%emt 0:00:06]} Be8 {[%emt 0:00:09]} 29. Red2 {[%emt 0:00:05]} Rxd2 30. Rxd2 Rc7 {[%emt 0:00:09]} 31. g4 {[%emt 0:00:18]} a5 {[%emt 0:00:06]} 32. Kg2 {[%emt 0:00:12]} a4 {[%emt 0:00:10]} 33. g5 {[%emt 0:00:12]} f6 {[%emt 0:00:08]} 34. gxf6+ {[%emt 0:00:06]} Kxf6 {[%emt 0:00:03]} 35. Rd6 {[%emt 0:00:17]} axb3 {[%emt 0:00:22]} 36. axb3 {[%emt 0:00:04]} Ke5 {[%emt 0:00:03]} 37. Rd3 {[%emt 0:00:10]} Bg6 {[%emt 0:00:04]} 38. Re3+ {[%emt 0:00:03]} Kf6 {[%emt 0:00:04]} 39. Be4 {[%emt 0:00:11]} Bf5 {[%emt 0:00:08]} 40. Bxf5 {[%emt 0:00:05]} Kxf5 {[%emt 0:00:09]} 41. Kf3 {[%emt 0:00:10]} e5 {[%emt 0:00:04]} 42. Ke2 {[%emt 0:00:10]} Ra7 {[%emt 0:00:12]} 43. Kd3 {[%emt 0:00:33]} Ra3 {[%emt 0:00:04]} 44. Rf3+ {[%emt 0:00:05]} Ke6 {[%emt 0:00:05]} 45. Kc3 {[%emt 0:00:07]} Ra2 {[%emt 0:00:08]} 46. Rf8 {[%emt 0:00:09]} e4 {[%emt 0:00:09]} 47. h4 {[%emt 0:00:21]} Re2 {[%emt 0:00:22]} 48. h5 {[%emt 0:00:10]} e3 {[%emt 0:00:08]} 49. Re8+ {[%emt 0:00:05]} Kd7 {[%emt 0:00:05]} 50. Rxe3 {[%emt 0:00:08]} Rxf2 {[%emt 0:00:04]} 51. Re5 {[%emt 0:00:05]} Kd6 {[%emt 0:00:05]} 52. Rd5+ {[%emt 0:00:06]} Kc6 53. Re5 {[%emt 0:00:10]} Rh2 {[%emt 0:00:09]} 54. Re6+ {[%emt 0:00:03]} Kb7 55. Rh6 Kc7 56. Rxh7+ Kb6 57. h6 Ka5 58. Rh8 Rh3+ 59. Kb2 Kb4 60. Rb8+ Ka5 61. Rb5+ Ka6 62. Rxc5 Rxh6 63. Rg5 Kb6 64. b4 1-0